Workbook

Sheet Original Data
A1: ID | B1: Education | C1: Age-Years | D1: Age | E1: Income-K | F1: Income | G1: Gender | H1: Purchased
A2: 1 | B2: College | C2: 21 | D2: Young | E2: 30 | F2: Low | G2: Male | H2: No
A3: 2 | B3: HighSchool | C3: 23 | D3: Young | E3: 35 | F3: Low | G3: Male | H3: No
A4: 3 | B4: College | C4: 25 | D4: Young | E4: 40 | F4: Low | G4: Female | H4: No
A5: 4 | B5: HighSchool | C5: 29 | D5: Young | E5: 51 | F5: High | G5: Male | H5: No
A6: 5 | B6: HighSchool | C6: 29 | D6: Young | E6: 50 | F6: High | G6: Male | H6: No
A7: 6 | B7: College | C7: 43 | D7: Old | E7: 55 | F7: High | G7: Female | H7: No
A8: 7 | B8: College | C8: 50 | D8: Old | E8: 45 | F8: Low | G8: Male | H8: No
A9: 8 | B9: College | C9: 40 | D9: Old | E9: 49 | F9: Low | G9: Female | H9: No
A10: 9 | B10: College | C10: 45 | D10: Old | E10: 55 | F10: High | G10: Male | H10: No
A11: 10 | B11: College | C11: 45 | D11: Old | E11: 60 | F11: High | G11: Male | H11: No
A12: 11 | B12: College | C12: 39 | D12: Young | E12: 40 | F12: High | G12: Female | H12: Yes
A13: 12 | B13: HighSchool | C13: 25 | D13: Young | E13: 49 | F13: Low | G13: Male | H13: Yes
A14: 13 | B14: College | C14: 40 | D14: Old | E14: 45 | F14: High | G14: Male | H14: Yes
A15: 14 | B15: College | C15: 39 | D15: Young | E15: 90 | F15: High | G15: Female | H15: Yes
A16: 15 | B16: College | C16: 39 | D16: Young | E16: 40 | F16: Low | G16: Female | H16: Yes
A17: 16 | B17: HighSchool | C17: 58 | D17: Old | E17: 100 | F17: High | G17: Female | H17: Yes
A18: 17 | B18: College | C18: 50 | D18: Old | E18: 60 | F18: High | G18: Male | H18: Yes
A19: 18 | B19: College | C19: 63 | D19: Old | E19: 110 | F19: High | G19: Female | H19: Yes
A20: 19 | B20: HighSchool | C20: 64 | D20: Old | E20: 90 | F20: High | G20: Male | H20: Yes
A21: 20 | B21: HighSchool | C21: 45 | D21: Old | E21: 100 | F21: High | G21: Female | H21: Yes
B23: Test Observations to Demo that each model works
B24: Education | C24: Age-Years | D24: Age | E24: Income | F24: College | G24: Gender
B25: College | C25: 45 | D25: Old | E25: 40 | F25: 1 | G25: 1
B26: HighSchool | C26: 45 | D26: Old | E26: 70 | F26: 0 | G26: 0

Sheet Logistic
A1: Coefficients | D1: Constant constraint | F1: 0 | P1: Diagnostics
A2: Constant | B2: 0 | D2: Original coefficient values to allow model to run. At the start the macro button will reset the coefficients. | F2: 0 | P2: Concordant | Q2: =COUNTIF(T10:T109, P2) -> 62 | S2: Concordant % | T2: =Q2/(Q2+Q3+Q4) -> 0.8051948052
A3: Age | B3: 0.02879766627 | F3: 0 | P3: Discordant | Q3: =COUNTIF(T10:T109, P3) -> 15 | S3: Discordant % | T3: =Q3/(Q2+Q3+Q4) -> 0.1948051948
A4: Gender | B4: -1.864487063 | F4: 0 | P4: Tied | Q4: =COUNTIF(T10:T109, P4) -> 0 | S4: Tied % | T4: =Q4/(Q2+Q3+Q4) -> 0
A5: Income | B5: 0.01927736524 | F5: 0 | P5: Total Pairs | Q5: =COUNTA(T10:T109) -> 77 | S5: C Statistic | T5: =(Q2+0.5*Q4)/(Q2+Q3+Q4) -> 0.8051948052
A6: College | B6: -1.574129723 | F6: 0 | S6: Sommers D | T6: =(Q2-Q3)/(Q2+Q3+Q4) -> 0.6103896104
S7: Gamma | T7: =(Q2-Q3)/(Q2+Q3) -> 0.6103896104
B8: Purchase = 1/No Purchse = 0 | S8: tau-a | T8: =(Q2-Q3)/Q5 -> 0.6103896104
A9: Original Data | H9: Calculation of Logit, Odds and Probability | N9: Sigmoid | O9: The values below are rounded to two decimals to force a "Tied" set
A10: Index | B10: Response | C10: Age | D10: Gender | E10: Income | F10: College | H10: Logit | I10: Odds Y | J10: Probability Y = 1 | K10: Probability Y = 0 | L10: Deviation | M10: Value to Max | N10: Function | O10: 1 | P10: 11 | Q10: =INDEX($J$11:$J$30,P10,1) -> 0.5793422551 | R10: =INDEX($J$11:$J$30,O10,1) -> 0.09487225063 | S10: =IF(ROUND(Q10, 2)>ROUND(R10,2), "Concordant", IF(ROUND(Q10,2)=ROUND(R10,2), "Tied", "Discordant")) -> Concordant
A11: 1 | B11: 0 | C11: 21 | D11: 1 | E11: 30 | F11: 1 | H11: =$B$2+(C11*$B$3)+(D11*$B$4)+(E11*$B$5)+(F11*$B$6) -> -2.255544837 | I11: =EXP(H11) -> 0.1048164203 | J11: =I11/(1+I11) -> 0.09487225063 | K11: =1-J11 -> 0.9051277494 | L11: =IFERROR(-2*((B11*LN(J11))+(1-B11)*(LN(K11))),0) -> 0.1993583714 | M11: =ABS((1-J11)^1-B11) -> 0.9051277494 | N11: =1/(1+(2.718281828)^(H11*-1)) -> 0.09487225066 | O11: 2 | P11: 11 | Q11: =INDEX($J$11:$J$30,P11,1) -> 0.5793422551 | R11: =INDEX($J$11:$J$30,O11,1) -> 0.3711158092 | S11: =IF(ROUND(Q11, 2)>ROUND(R11,2), "Concordant", IF(ROUND(Q11,2)=ROUND(R11,2), "Tied", "Discordant")) -> Concordant
A12: 2 | B12: 0 | C12: 23 | D12: 1 | E12: 35 | F12: 0 | H12: -0.5274329553 | I12: 0.590117886 | J12: =I12/(1+I12) -> 0.3711158092 | K12: =1-J12 -> 0.6288841908 | L12: =IFERROR(-2*((B12*LN(J12))+(1-B12)*(LN(K12))),0) -> 0.9276163112 | M12: 0.6288841908 | N12: =1/(1+(2.718281828)^(H12*-1)) -> 0.3711158092 | O12: 3 | P12: 11 | Q12: 0.5793422551 | R12: 0.4792385802 | S12: Concordant
A13: 3 | B13: 0 | C13: 25 | D13: 0 | E13: 40 | F13: 1 | H13: -0.08309345621 | I13: 0.9202651387 | J13: 0.4792385802 | K13: 0.5207614198 | L13: 1.304926539 | M13: 0.5207614198 | N13: 0.4792385802 | O13: 4 | P13: 11 | Q13: 0.5793422551 | R13: 0.4596198086 | S13: Concordant
A14: 4 | B14: 0 | C14: 29 | D14: 1 | E14: 45 | F14: 0 | H14: -0.1618733053 | I14: 0.8505489578 | J14: 0.4596198086 | K14: 0.5403801914 | L14: 1.230964658 | M14: 0.5403801914 | N14: 0.4596198086 | O14: 5 | P14: 11 | Q14: 0.5793422551 | R14: 0.4836342285 | S14: Concordant
A15: 5 | B15: 0 | C15: 29 | D15: 1 | E15: 50 | F15: 0 | H15: -0.06548647905 | I15: 0.9366117106 | J15: 0.4836342285 | K15: 0.5163657715 | L15: 1.32187981 | M15: 0.5163657715 | N15: 0.4836342285 | O15: 6 | P15: 11 | Q15: 0.5793422551 | R15: 0.6735806903 | S15: Discordant
A16: 6 | B16: 0 | C16: 43 | D16: 0 | E16: 55 | F16: 1 | H16: 0.7244250154 | I16: 2.063544253 | J16: 0.6735806903 | K16: 0.3264193097 | L16: 2.239144996 | M16: 0.3264193097 | N16: 0.6735806903 | O16: 7 | P16: 11 | Q16: 0.5793422551 | R16: 0.2439301161 | S16: Concordant
A17: 7 | B17: 0 | C17: 50 | D17: 1 | E17: 45 | F17: 1 | H17: -1.131252036 | I17: 0.3226290602 | J17: 0.2439301161 | K17: 0.7560698839 | L17: 0.559242936 | M17: 0.7560698839 | N17: 0.2439301161 | O17: 8 | P17: 11 | Q17: 0.5793422551 | R17: 0.6321950479 | S17: Discordant
A18: 8 | B18: 0 | C18: 40 | D18: 0 | E18: 50 | F18: 1 | H18: 0.5416451903 | I18: 1.718832344 | J18: 0.6321950479 | K18: 0.3678049521 | L18: 2.000405005 | M18: 0.3678049521 | N18: 0.6321950479 | O18: 9 | P18: 11 | Q18: 0.5793422551 | R18: 0.2530394976 | S18: Concordant
A19: 9 | B19: 0 | C19: 45 | D19: 1 | E19: 55 | F19: 1 | H19: -1.082466715 | I19: 0.3387588725 | J19: 0.2530394976 | K19: 0.7469605024 | L19: 0.5834859404 | M19: 0.7469605024 | N19: 0.2530394976 | O19: 10 | P19: 11 | Q19: 0.5793422551 | R19: 0.271687068 | S19: Concordant
A20: 10 | B20: 0 | C20: 45 | D20: 1 | E20: 60 | F20: 1 | H20: -0.986079889 | I20: 0.3730361717 | J20: 0.271687068 | K20: =1-J20 -> 0.728312932 | L20: 0.6340489429 | M20: 0.728312932 | N20: 0.271687068 | O20: 1 | P20: 12 | Q20: =INDEX($J$11:$J$30,P20,1) -> 0.4789398881 | R20: 0.09487225063 | S20: Concordant
A21: 11 | B21: 1 | C21: 39 | D21: 0 | E21: 40 | F21: 1 | H21: 0.3200738716 | I21: 1.377229499 | J21: 0.5793422551 | K21: 0.4206577449 | L21: 1.091723724 | M21: 0.5793422551 | N21: 0.5793422551 | O21: 2 | P21: 12 | Q21: 0.4789398881 | R21: 0.3711158092 | S21: Concordant
A22: 12 | B22: 1 | C22: 25 | D22: 1 | E22: 55 | F22: 0 | H22: -0.08429031794 | I22: 0.9191643674 | J22: 0.4789398881 | K22: 0.5210601119 | L22: 1.472360368 | M22: 0.4789398881 | N22: 0.4789398881 | O22: 3 | P22: 12 | Q22: 0.4789398881 | R22: 0.4792385802 | S22: Tied
A23: 13 | B23: 1 | C23: 40 | D23: 1 | E23: 45 | F23: 1 | H23: -1.419228699 | I23: 0.2419005231 | J23: 0.1947825277 | K23: 0.8052174723 | L23: 3.27174317 | M23: 0.1947825277 | N23: 0.1947825278 | O23: 4 | P23: 12 | Q23: 0.4789398881 | R23: 0.4596198086 | S23: Concordant
A24: 14 | B24: 1 | C24: 39 | D24: 0 | E24: 90 | F24: 1 | H24: 1.283942134 | I24: 3.610846144 | J24: 0.7831200676 | K24: 0.2168799324 | L24: 0.4889385034 | M24: 0.7831200676 | N24: 0.7831200676 | O24: 5 | P24: 12 | Q24: 0.4789398881 | R24: 0.4836342285 | S24: Tied
A25: 15 | B25: 1 | C25: 39 | D25: 0 | E25: 40 | F25: 1 | H25: 0.3200738716 | I25: 1.377229499 | J25: 0.5793422551 | K25: 0.4206577449 | L25: 1.091723724 | M25: 0.5793422551 | N25: 0.5793422551 | O25: 6 | P25: 12 | Q25: 0.4789398881 | R25: 0.6735806903 | S25: Discordant
A26: 16 | B26: 1 | C26: 58 | D26: 0 | E26: 100 | F26: 0 | H26: 3.598001168 | I26: 36.52515379 | J26: 0.9733512085 | K26: =1-J26 -> 0.02664879152 | L26: 0.05402061536 | M26: 0.9733512085 | N26: 0.9733512085 | O26: 7 | P26: 12 | Q26: 0.4789398881 | R26: 0.2439301161 | S26: Concordant
A27: 17 | B27: 1 | C27: 50 | D27: 1 | E27: 60 | F27: 1 | H27: -0.8420915576 | I27: 0.4308085196 | J27: 0.3010944607 | K27: 0.6989055393 | L27: 2.400662481 | M27: 0.3010944607 | N27: 0.3010944608 | O27: 8 | P27: 12 | Q27: 0.4789398881 | R27: 0.6321950479 | S27: Discordant
A28: 18 | B28: 1 | C28: 63 | D28: 0 | E28: 110 | F28: 1 | H28: 2.360633429 | I28: 10.59766219 | J28: 0.9137757262 | K28: 0.08622427375 | L28: 0.1803402275 | M28: 0.9137757262 | N28: 0.9137757262 | O28: 9 | P28: 12 | Q28: 0.4789398881 | R28: 0.2530394976 | S28: Concordant
A29: 19 | B29: 1 | C29: 64 | D29: 1 | E29: 90 | F29: 0 | H29: 1.71352645 | I29: 5.548493504 | J29: 0.8472931218 | K29: 0.1527068782 | L29: 0.3314171472 | M29: 0.8472931218 | N29: 0.8472931218 | O29: 10 | P29: 12 | Q29: 0.4789398881 | R29: 0.271687068 | S29: Concordant
A30: 20 | B30: 1 | C30: 45 | D30: 0 | E30: 100 | F30: 0 | H30: 3.223631507 | I30: 25.1191752 | J30: 0.9617139518 | K30: 0.03828604818 | L30: 0.07807643983 | M30: 0.9617139518 | N30: 0.9617139518 | O30: 1 | P30: 13 | Q30: 0.1947825277 | R30: 0.09487225063 | S30: Concordant
O31: 2 | P31: 13 | Q31: =INDEX($J$11:$J$30,P31,1) -> 0.1947825277 | R31: 0.3711158092 | S31: Discordant
L32: =SUM(L11:L30) -> 21.46207991 | M32: =SUM(M11:M30) -> 12.64984237 | O32: 3 | P32: 13 | Q32: 0.1947825277 | R32: 0.4792385802 | S32: Discordant
P33: 4 | Q33: 13 | R33: 0.1947825277 | S33: 0.4596198086 | T33: Discordant
D34: N | E34: Deviance | F34: Parameters | G34: Values | P34: 5 | Q34: 13 | R34: 0.1947825277 | S34: 0.4836342285 | T34: Discordant
B35: AIC Intercept and Covariates | E35: =$L$32 -> 21.46207991 | F35: 5 | G35: =F35*F35+(E35) -> 46.46207991 | P35: 6 | Q35: 13 | R35: 0.1947825277 | S35: 0.6735806903 | T35: Discordant
B36: -2 Log L Intercept and Covariates | E36: =$L$32 -> 21.46207991 | G36: =L32 -> 21.46207991 | P36: 7 | Q36: 13 | R36: 0.1947825277 | S36: 0.2439301161 | T36: Discordant
B37: SB Intercept and Covariates | D37: 20 | E37: =$L$32 -> 21.46207991 | F37: 5 | G37: =F37*(LN(D37))+E37 -> 36.44074128 | P37: 8 | Q37: 13 | R37: 0.1947825277 | S37: 0.6321950479 | T37: Discordant
P38: 9 | Q38: 13 | R38: 0.1947825277 | S38: 0.2530394976 | T38: Discordant
P39: 10 | Q39: 13 | R39: 0.1947825277 | S39: 0.271687068 | T39: Discordant
J40: Prediction | P40: 1 | Q40: 14 | R40: 0.7831200676 | S40: 0.09487225063 | T40: Concordant
C41: Age | D41: Gender | E41: Income | F41: College | H41: Logit | I41: Odds Y | J41: Probability Y = 1 | P41: 2 | Q41: 14 | R41: =INDEX($J$11:$J$30,Q41,1) -> 0.7831200676 | S41: 0.3711158092 | T41: Concordant
B42: Observation 1 | C42: 45 | D42: 1 | E42: 40 | F42: 1 | H42: =$B$2+(C42*$B$3)+(D42*$B$4)+(E42*$B$5)+(F42*$B$6) -> -1.371627194 | I42: =EXP(H42) -> 0.2536938145 | J42: =I42/(1+I42) -> 0.202357076 | P42: 3 | Q42: 14 | R42: 0.7831200676 | S42: 0.4792385802 | T42: Concordant
B43: Observation 2 | C43: 45 | D43: 0 | E43: 70 | F43: 0 | H43: =$B$2+(C43*$B$3)+(D43*$B$4)+(E43*$B$5)+(F43*$B$6) -> 2.645310549 | I43: =EXP(H43) -> 14.08781937 | J43: =I43/(1+I43) -> 0.9337213698 | P43: 4 | Q43: 14 | R43: 0.7831200676 | S43: 0.4596198086 | T43: Concordant
P44: 5 | Q44: 14 | R44: 0.7831200676 | S44: 0.4836342285 | T44: Concordant
P45: 6 | Q45: 14 | R45: 0.7831200676 | S45: 0.6735806903 | T45: Concordant
P46: 7 | Q46: 14 | R46: 0.7831200676 | S46: 0.2439301161 | T46: Concordant
P47: 8 | Q47: 14 | R47: 0.7831200676 | S47: 0.6321950479 | T47: Concordant
A48: 1 | B48: 0 | P48: 9 | Q48: 14 | R48: 0.7831200676 | S48: 0.2530394976 | T48: Concordant
A49: 2 | B49: 0.005 | P49: 10 | Q49: 14 | R49: 0.7831200676 | S49: 0.271687068 | T49: Concordant
A50: 3 | B50: 0.01 | P50: 1 | Q50: 15 | R50: 0.5793422551 | S50: 0.09487225063 | T50: Concordant
A51: 4 | B51: 0.02 | P51: 2 | Q51: 15 | R51: =INDEX($J$11:$J$30,Q51,1) -> 0.5793422551 | S51: 0.3711158092 | T51: Concordant
A52: 5 | B52: 0.04 | P52: 3 | Q52: 15 | R52: 0.5793422551 | S52: 0.4792385802 | T52: Concordant
A53: 6 | B53: 0.07 | P53: 4 | Q53: 15 | R53: 0.5793422551 | S53: 0.4596198086 | T53: Concordant
A54: 7 | B54: 0.11 | P54: 5 | Q54: 15 | R54: 0.5793422551 | S54: 0.4836342285 | T54: Concordant
A55: 8 | B55: 0.16 | P55: 6 | Q55: 15 | R55: 0.5793422551 | S55: 0.6735806903 | T55: Discordant
A56: 9 | B56: 0.22 | P56: 7 | Q56: 15 | R56: 0.5793422551 | S56: 0.2439301161 | T56: Concordant
A57: 10 | B57: 0.29 | P57: 8 | Q57: 15 | R57: 0.5793422551 | S57: 0.6321950479 | T57: Discordant
A58: 11 | B58: 0.37 | P58: 9 | Q58: 15 | R58: 0.5793422551 | S58: 0.2530394976 | T58: Concordant
A59: 12 | B59: 0.44 | P59: 10 | Q59: 15 | R59: 0.5793422551 | S59: 0.271687068 | T59: Concordant
A60: 13 | B60: 0.5 | P60: 1 | Q60: 16 | R60: 0.9733512085 | S60: 0.09487225063 | T60: Concordant
A61: 14 | B61: 0.56 | P61: 2 | Q61: 16 | R61: =INDEX($J$11:$J$30,Q61,1) -> 0.9733512085 | S61: 0.3711158092 | T61: Concordant
A62: 15 | B62: 0.63 | P62: 3 | Q62: 16 | R62: 0.9733512085 | S62: 0.4792385802 | T62: Concordant
A63: 16 | B63: 0.71 | P63: 4 | Q63: 16 | R63: 0.9733512085 | S63: 0.4596198086 | T63: Concordant
A64: 17 | B64: 0.78 | P64: 5 | Q64: 16 | R64: 0.9733512085 | S64: 0.4836342285 | T64: Concordant
A65: 18 | B65: 0.84 | P65: 6 | Q65: 16 | R65: 0.9733512085 | S65: 0.6735806903 | T65: Concordant
A66: 19 | B66: 0.89 | P66: 7 | Q66: 16 | R66: 0.9733512085 | S66: 0.2439301161 | T66: Concordant
A67: 20 | B67: 0.93 | P67: 8 | Q67: 16 | R67: 0.9733512085 | S67: 0.6321950479 | T67: Concordant
A68: 21 | B68: 0.96 | P68: 9 | Q68: 16 | R68: 0.9733512085 | S68: 0.2530394976 | T68: Concordant
A69: 22 | B69: 0.98 | P69: 10 | Q69: 16 | R69: 0.9733512085 | S69: 0.271687068 | T69: Concordant
A70: 23 | B70: 0.99 | P70: 1 | Q70: 17 | R70: 0.3010944607 | S70: 0.09487225063 | T70: Concordant
A71: 24 | B71: 0.995 | P71: 2 | Q71: 17 | R71: =INDEX($J$11:$J$30,Q71,1) -> 0.3010944607 | S71: 0.3711158092 | T71: Discordant
A72: 25 | B72: 1 | P72: 3 | Q72: 17 | R72: 0.3010944607 | S72: 0.4792385802 | T72: Discordant
P73: 4 | Q73: 17 | R73: 0.3010944607 | S73: 0.4596198086 | T73: Discordant
P74: 5 | Q74: 17 | R74: =INDEX($J$11:$J$30,Q74,1) -> 0.3010944607 | S74: 0.4836342285 | T74: Discordant
P75: 6 | Q75: 17 | R75: 0.3010944607 | S75: =INDEX($J$11:$J$30,P75,1) -> 0.6735806903 | T75: =IF(ROUND(R75, 2)>ROUND(S75,2), "Concordant", IF(ROUND(R75,2)=ROUND(S75,2), "Tied", "Discordant")) -> Discordant
P76: 7 | Q76: 17 | R76: 0.3010944607 | S76: 0.2439301161 | T76: Concordant
P77: 8 | Q77: 17 | R77: 0.3010944607 | S77: 0.6321950479 | T77: Discordant
P78: 9 | Q78: 17 | R78: 0.3010944607 | S78: 0.2530394976 | T78: Concordant
P79: 10 | Q79: 17 | R79: 0.3010944607 | S79: 0.271687068 | T79: Concordant
P80: 1 | Q80: 18 | R80: 0.9137757262 | S80: 0.09487225063 | T80: Concordant
P81: 2 | Q81: 18 | R81: =INDEX($J$11:$J$30,Q81,1) -> 0.9137757262 | S81: 0.3711158092 | T81: Concordant
P82: 3 | Q82: 18 | R82: 0.9137757262 | S82: 0.4792385802 | T82: Concordant
P83: 4 | Q83: 18 | R83: 0.9137757262 | S83: 0.4596198086 | T83: Concordant
P84: 5 | Q84: 18 | R84: 0.9137757262 | S84: 0.4836342285 | T84: Concordant
P85: 6 | Q85: 18 | R85: 0.9137757262 | S85: 0.6735806903 | T85: Concordant
P86: 7 | Q86: 18 | R86: 0.9137757262 | S86: 0.2439301161 | T86: Concordant
P87: 8 | Q87: 18 | R87: 0.9137757262 | S87: 0.6321950479 | T87: Concordant
P88: 9 | Q88: 18 | R88: 0.9137757262 | S88: 0.2530394976 | T88: Concordant
A89: This model was adapted from a video at this site: | P89: 10 | Q89: 18 | R89: 0.9137757262 | S89: 0.271687068 | T89: Concordant
A90: http://www.excelmasterseries.com/Excel_Statistical_Master/Excel-Logistic-Regression.php | P90: 1 | Q90: 19 | R90: 0.8472931218 | S90: 0.09487225063 | T90: Concordant
P91: 2 | Q91: 19 | R91: =INDEX($J$11:$J$30,Q91,1) -> 0.8472931218 | S91: 0.3711158092 | T91: Concordant
P92: 3 | Q92: 19 | R92: 0.8472931218 | S92: 0.4792385802 | T92: Concordant
P93: 4 | Q93: 19 | R93: 0.8472931218 | S93: 0.4596198086 | T93: Concordant
P94: 5 | Q94: 19 | R94: 0.8472931218 | S94: 0.4836342285 | T94: Concordant
P95: 6 | Q95: 19 | R95: 0.8472931218 | S95: 0.6735806903 | T95: Concordant
P96: 7 | Q96: 19 | R96: 0.8472931218 | S96: 0.2439301161 | T96: Concordant
P97: 8 | Q97: 19 | R97: 0.8472931218 | S97: 0.6321950479 | T97: Concordant
P98: 9 | Q98: 19 | R98: 0.8472931218 | S98: 0.2530394976 | T98: Concordant
P99: 10 | Q99: 19 | R99: 0.8472931218 | S99: 0.271687068 | T99: Concordant
P100: 1 | Q100: 20 | R100: 0.9617139518 | S100: 0.09487225063 | T100: Concordant
P101: 2 | Q101: 20 | R101: =INDEX($J$11:$J$30,Q101,1) -> 0.9617139518 | S101: 0.3711158092 | T101: Concordant
P102: 3 | Q102: 20 | R102: 0.9617139518 | S102: 0.4792385802 | T102: Concordant
P103: 4 | Q103: 20 | R103: 0.9617139518 | S103: 0.4596198086 | T103: Concordant
P104: 5 | Q104: 20 | R104: 0.9617139518 | S104: 0.4836342285 | T104: Concordant
P105: 6 | Q105: 20 | R105: 0.9617139518 | S105: 0.6735806903 | T105: Concordant
P106: 7 | Q106: 20 | R106: 0.9617139518 | S106: 0.2439301161 | T106: Concordant
P107: 8 | Q107: 20 | R107: 0.9617139518 | S107: 0.6321950479 | T107: Concordant
P108: 9 | Q108: 20 | R108: 0.9617139518 | S108: 0.2530394976 | T108: Concordant
P109: 10 | Q109: 20 | R109: 0.9617139518 | S109: 0.271687068 | T109: Concordant

Sheet Logistic Math
A1: Observation | B1: Logit | C1: Odds | D1: Probability
A2: 1 | B2: =INDEX(Logistic!$H$11:$H$30,A2,1) -> -2.255544837 | C2: =EXP(B2) -> 0.1048164203 | D2: =C2/(1+C2) -> 0.09487225063
A3: 13 | B3: =INDEX(Logistic!$H$11:$H$30,A3,1) -> -1.419228699 | C3: =EXP(B3) -> 0.2419005231 | D3: =C3/(1+C3) -> 0.1947825277
A4: 7 | B4: =INDEX(Logistic!$H$11:$H$30,A4,1) -> -1.131252036 | C4: =EXP(B4) -> 0.3226290602 | D4: =C4/(1+C4) -> 0.2439301161
A5: 9 | B5: =INDEX(Logistic!$H$11:$H$30,A5,1) -> -1.082466715 | C5: =EXP(B5) -> 0.3387588725 | D5: =C5/(1+C5) -> 0.2530394976
A6: 10 | B6: =INDEX(Logistic!$H$11:$H$30,A6,1) -> -0.986079889 | C6: =EXP(B6) -> 0.3730361717 | D6: =C6/(1+C6) -> 0.271687068
A7: 17 | B7: =INDEX(Logistic!$H$11:$H$30,A7,1) -> -0.8420915576 | C7: =EXP(B7) -> 0.4308085196 | D7: =C7/(1+C7) -> 0.3010944607
A8: 2 | B8: =INDEX(Logistic!$H$11:$H$30,A8,1) -> -0.5274329553 | C8: =EXP(B8) -> 0.590117886 | D8: =C8/(1+C8) -> 0.3711158092
A9: 4 | B9: =INDEX(Logistic!$H$11:$H$30,A9,1) -> -0.1618733053 | C9: =EXP(B9) -> 0.8505489578 | D9: =C9/(1+C9) -> 0.4596198086
A10: 12 | B10: =INDEX(Logistic!$H$11:$H$30,A10,1) -> -0.08429031794 | C10: =EXP(B10) -> 0.9191643674 | D10: =C10/(1+C10) -> 0.4789398881
A11: 3 | B11: =INDEX(Logistic!$H$11:$H$30,A11,1) -> -0.08309345621 | C11: =EXP(B11) -> 0.9202651387 | D11: =C11/(1+C11) -> 0.4792385802
A12: 5 | B12: =INDEX(Logistic!$H$11:$H$30,A12,1) -> -0.06548647905 | C12: =EXP(B12) -> 0.9366117106 | D12: =C12/(1+C12) -> 0.4836342285
A13: 11 | B13: =INDEX(Logistic!$H$11:$H$30,A13,1) -> 0.3200738716 | C13: =EXP(B13) -> 1.377229499 | D13: =C13/(1+C13) -> 0.5793422551
A14: 15 | B14: =INDEX(Logistic!$H$11:$H$30,A14,1) -> 0.3200738716 | C14: =EXP(B14) -> 1.377229499 | D14: =C14/(1+C14) -> 0.5793422551
A15: 8 | B15: =INDEX(Logistic!$H$11:$H$30,A15,1) -> 0.5416451903 | C15: =EXP(B15) -> 1.718832344 | D15: =C15/(1+C15) -> 0.6321950479
A16: 6 | B16: =INDEX(Logistic!$H$11:$H$30,A16,1) -> 0.7244250154 | C16: =EXP(B16) -> 2.063544253 | D16: =C16/(1+C16) -> 0.6735806903
A17: 14 | B17: =INDEX(Logistic!$H$11:$H$30,A17,1) -> 1.283942134 | C17: =EXP(B17) -> 3.610846144 | D17: =C17/(1+C17) -> 0.7831200676
A18: 19 | B18: =INDEX(Logistic!$H$11:$H$30,A18,1) -> 1.71352645 | C18: =EXP(B18) -> 5.548493504 | D18: =C18/(1+C18) -> 0.8472931218
A19: 18 | B19: =INDEX(Logistic!$H$11:$H$30,A19,1) -> 2.360633429 | C19: =EXP(B19) -> 10.59766219 | D19: =C19/(1+C19) -> 0.9137757262
A20: 20 | B20: =INDEX(Logistic!$H$11:$H$30,A20,1) -> 3.223631507 | C20: =EXP(B20) -> 25.1191752 | D20: =C20/(1+C20) -> 0.9617139518
A21: 16 | B21: =INDEX(Logistic!$H$11:$H$30,A21,1) -> 3.598001168 | C21: =EXP(B21) -> 36.52515379 | D21: =C21/(1+C21) -> 0.9733512085
A29: Sigmoid Fundion
A32: X | B32: Sigmoid
A33: -6 | B33: =1/(1+(2.718281828)^(A33*-1)) -> 0.002472623159
A34: -5 | B34: =1/(1+(2.718281828)^(A34*-1)) -> 0.00669285093
A35: -4 | B35: 0.01798620997
A36: -3 | B36: 0.0474258732
A37: -2.5 | B37: 0.07585818005
A38: -2 | B38: 0.1192029221
A39: -1.5 | B39: 0.1824255238
A40: -1 | B40: 0.2689414214
A41: -0.5 | B41: 0.3775406688
A42: 0 | B42: 0.5
A43: 0.5 | B43: 0.6224593312
A44: 1 | B44: 0.7310585786
A45: 1.5 | B45: 0.8175744762
A46: 2 | B46: 0.8807970779
A47: 2.5 | B47: 0.9241418199
A48: 3 | B48: 0.9525741268
A49: 4 | B49: 0.98201379
A50: 5 | B50: 0.9933071491
A51: 6 | B51: 0.9975273768
A52: 6 | B52: 0.9975273768
